Cogmind - Beta 9.6 @@@ ROGUE MODE // 2020.07.14 @ 16:18:34 Player: Ariadne Result: Destroyed by Y-45 Defender with Heavy Assault Rifle Performance ------------- Evolutions (1) 500 Regions Visited (2) 400 Robots Destroyed (23) 115 Value Destroyed (672) 672 Prototype IDs (3) 60 Alien Tech Used (0) 0 Bonus (0) 0 TOTAL SCORE: 1747 Bonus ------- None Cogmind --------- Core Integrity 0/400 Matter 137/300 Energy 263/265 System Corruption 3% Temperature Cool (10) Movement Treading (180) Ox1 Location -9/Materials Parts ------- > --- POWER (1) -------- Improved Ion Engine > --- PROPULSION (2) --- Light Treads Aluminum Leg > --- UTILITY (3) ------ Large Storage Unit System Shield > --- WEAPON (3) ------- Assault Rifle > --- INVENTORY (10) --- Heat Sink Peak State ------------ > --- POWER ------------ Reinforced Ion Engine > --- PROPULSION ------- Aluminum Leg Improved Aluminum Leg > --- UTILITY ---------- Large Storage Unit Medium Armor Plating System Shield > --- WEAPON ----------- Heavy EM Pulse Gun Assault Rifle Heavy Assault Rifle > --- INVENTORY -------- Improved Ion Engine Aluminum Leg Aluminum Leg Medium Armor Plating Assault Rifle Assault Rifle Heavy Assault Rifle [Rating: 17] Favorites ----------- Power Ion Engine Engine Ion Engine Propulsion Light Treads Treads Light Treads Leg Aluminum Leg Utility Large Storage Unit Device Heat Sink Storage Large Storage Unit Hackware System Shield Protection Medium Armor Plating Weapon Assault Rifle Energy Gun Beam Rifle Ballistic Gun Assault Rifle Build | -11 -10 -9 ------- Run | Scr Mat Mat Slots Evolved 2 | . . 2 Power . | . . . Propulsion . | . . . Utility 1 | . . 1 Weapon 1 | . . 1 Parts Attached 39 | 8 6 25 Power 6 | 2 1 3 Engine 6 | 2 1 3 Core . | . . . Reactor . | . . . Propulsion 9 | 2 2 5 Treads 3 | 2 . 1 Leg 6 | . 2 4 Wheel . | . . . Hover . | . . . Flight . | . . . Utility 9 | 1 2 6 Device 2 | . 2 . Storage 3 | 1 . 2 Processor . | . . . Hackware 1 | . . 1 Protection 3 | . . 3 Artifact . | . . . Weapon 15 | 3 1 11 Energy Gun 8 | 2 1 5 Energy Cannon . | . . . Ballistic Gun 7 | 1 . 6 Ballistic Cannon . | . . . Launcher . | . . . Special Weapon . | . . . Impact Weapon . | . . . Slashing Weapon . | . . . Piercing Weapon . | . . . Special Melee Weapon . | . . . Unidentified Prototypes . | . . . Parts Lost 20 | . 6 14 Power 2 | . 1 1 Propulsion 4 | . 1 3 Utility 3 | . 1 2 Weapon 11 | . 3 8 Highest Loss Streak 6 | . 3 6 Average Slot Usage (%) 88 | . 89 87 Engine 11 | . 13 10 Treads 11 | . 26 . Leg 10 | . 1 16 Device 4 | . 10 . Storage 14 | . 14 14 Hackware 3 | . . 5 Protection 6 | . . 10 Energy Gun 11 | . 11 11 Ballistic Gun 13 | . 11 15 Naked Turns . | . . . Heaviest Build 49 | 13 14 49 Greatest Support 40 | 40 40 23 Greatest Overweight (x) 8 | . . 8 Average Overweight (x) 1 | . . 2 Largest Inventory Capacity 18 | 6 6 18 Average Capacity 8 | 5 6 11 Most Carried 7 | 4 5 7 Average Carried 2 | 1 2 3 Final Capacity 10 | 6 6 10 Final Carried 2 | 2 1 1 Class Distribution -------------------- 64% | Mutant 24% | Scavenger-Mutant 5% | Tank 3% | Scavenger-Tank Dominant Class ---------------- Mutant | -10/Materials Scavenger-Mutant | -9/Materials Resources | -11 -10 -9 ----------- Run | Scr Mat Mat Matter Collected 792 | 163 212 417 Remotely . | . . . Salvage Created 834 | . 295 539 Parts 45 | . 17 28 Haulers Intercepted . | . . . Recyclers Shooed 2 | . 1 1 Parts Field Recycled . | . . . Retrieved Matter . | . . . Parts Self-Destructed . | . . . Prevented . | . . . Kills | -11 -10 -9 ------- Run | Scr Mat Mat Combat Hostiles Destroyed 23 | . 9 14 Melee 1 | . 1 . Guns 22 | . 8 14 Classes Destroyed 4 | . 2 2 Swarmer 7 | . 3 4 Grunt 12 | . 6 6 Brawler 1 | . . 1 Sentry 3 | . . 3 Best Kill Streak 4 | . 4 4 Combat Bots Only 4 | . 4 4 Max Kills in Single Turn 2 | . 1 2 Gunslinging 1 | . . 1 Exploded . | . . . Melee 1 | . 1 . Uniques/NPCs Destroyed . | . . . Combat | -11 -10 -9 -------- Run | Scr Mat Mat Damage Taken 2950 | . 990 1960 Core 642 | . 229 413 Absorbed by Shields . | . . . Core Remaining (%) 54 | 100 8 . Volleys Fired 104 | . 30 74 Largest 3 | . 2 3 Hottest 124 | . 70 124 Shots Fired 222 | . 59 163 Gun 222 | . 59 163 Cannon . | . . . Launcher . | . . . Special . | . . . Kinetic 151 | . 30 121 Thermal 34 | . 12 22 Explosive . | . . . Electromagnetic 37 | . 17 20 Robot Hit Streak 8 | . 8 8 Robot Miss Streak 4 | . 3 4 Penetration Max . | . . . Secondary Targets 3 | . 2 1 Max Gunslinging Chain 1 | . 1 1 Shots Hit Robots 139 | . 42 97 Core Hits 37 | . 15 22 Critical Hits . | . . . Critical Kills . | . . . Critical Parts Destroyed . | . . . Melee Attacks . | . . . Impact . | . . . Slashing . | . . . Piercing . | . . . Sneak Attacks . | . . . Combat Hostiles . | . . . Follow-up Attacks . | . . . Damage Inflicted 1376 | . 595 781 Guns 1272 | . 491 781 Cannons . | . . . Explosions 95 | . 95 . Melee . | . . . Ramming 9 | . 9 . Kinetic 716 | . 224 492 Thermal 402 | . 211 191 Explosive . | . . . Electromagnetic 249 | . 151 98 Impact . | . . . Slashing . | . . . Piercing . | . . . Highest Corruption 3 | . . 3 Average Corruption 2 | . . 2 Corruption Purged . | . . . Effects 11 | . . 11 Message Errors 1 | . . 1 Matter Fused 1 | . . 1 Heat Flow Errors 2 | . . 2 Energy Discharges 2 | . . 2 Data Loss (minor) 1 | . . 1 Targeting Errors 4 | . . 4 Overload Shots . | . . . Overflow Damage 5 | . 5 . Projectiles . | . . . Explosions 5 | . 5 . Melee . | . . . Knockbacks . | . . . Impact . | . . . Kinetic . | . . . Secondary . | . . . Self-Inflicted Damage 71 | . 71 . Shots 2 | . 2 . Rammed 4 | . 4 . Targets Rammed 4 | . 4 . Kicked . | . . . Crushed . | . . . Highest Temperature 428 | . 60 428 Average Temperature 180 | . 25 194 Received Heat Transfer 1155 | . 495 660 Effects 9 | . . 9 Shutdowns 4 | . . 4 Energy Bleed 3 | . . 3 Interference 1 | . . 1 Matter Decay 1 | . . 1 Siege Activations . | . . . Robots Corrupted . | . . . Combat Hostiles . | . . . Parts Fried . | . . . Impact Corruptions . | . . . Robots Melted . | . . . Combat Hostiles . | . . . Parts Melted . | . . . Heat Transferred 954 | . 483 471 Parts Sabotaged . | . . . Parts Stolen . | . . . Parts Stripped . | . . . Power Chain Reactions 2 | . 2 . Missiles Intercepted . | . . . Alert | -11 -10 -9 ------- Run | Scr Mat Mat Peak Influence 197 | . 165 197 Average Influence 64 | . 65 70 Maximum Alert Level . | . . . Low Security (%) 100 | 100 100 100 Level 1 . | . . . Level 2 . | . . . Level 3 . | . . . Level 4 . | . . . Level 5 . | . . . High Security . | . . . Max Security . | . . . Squads Dispatched 4 | . 2 2 Investigation 3 | . 1 2 Extermination . | . . . Reinforcement 1 | . 1 . Assault . | . . . Garrison . | . . . Intercept . | . . . Construction Impeded . | . . . Haulers Reinforced . | . . . Stealth | -11 -10 -9 --------- Run | Scr Mat Mat Distress Signals 3 | . 1 2 Communications Jammed . | . . . Distress Signals . | . . . Times Spotted 47 | . 20 27 Peak Tracking Total 7 | . 6 7 Tactical Retreats 6 | . 3 3 Traps | -11 -10 -9 ------- Run | Scr Mat Mat Traps Triggered . | . . . Indirectly . | . . . Trap Hack Attempts . | . . . Triggered . | . . . Disarmed . | . . . Reprogrammed . | . . . Reused . | . . . Traps Extracted . | . . . Installed . | . . . Triggered . | . . . Machines | -11 -10 -9 ---------- Run | Scr Mat Mat Machines Disabled 1 | . . 1 Max in Single Turn 1 | . . 1 Machines Sabotaged . | . . . Garrisons Compromised . | . . . Overloaded Fab Kills . | . . . Fab Network Shutdowns . | . . . Hacking | -11 -10 -9 --------- Run | Scr Mat Mat Machines Accessed 6 | . 3 3 Terminals 5 | . 2 3 Fabricators . | . . . Repair Stations . | . . . Recycling Units 1 | . 1 . Scanalyzers . | . . . Garrison Access . | . . . Total Hacks 18 | . 8 10 Successful 8 | . 4 4 Failed 10 | . 4 6 Catastrophic . | . . . Database Lockouts . | . . . Manual 3 | . . 3 Terminals 17 | . 7 10 Fabricators . | . . . Repair Stations . | . . . Recycling Units 1 | . 1 . Scanalyzers . | . . . Garrison Access . | . . . Terminal Hacks 7 | . 3 4 Record 1 | . . 1 Prototype ID Bank 1 | . 1 . Unreport Threat 1 | . . 1 Investigation Status 1 | . . 1 Hauler Manifests 2 | . 1 1 Zone Layout 1 | . 1 . Fabricator Hacks . | . . . Repair Station Hacks . | . . . Recycling Unit Hacks 1 | . 1 . Report Inventory 1 | . 1 . Scanalyzer . | . . . Garrison Access Hacks . | . . . Unauthorized Hacks . | . . . Terminals . | . . . Fabricators . | . . . Repair Stations . | . . . Recycling Units . | . . . Scanalyzers . | . . . Garrison Access . | . . . Data Cores Recovered . | . . . Used . | . . . Hacking Detections 6 | . 3 3 Full Trace Events 4 | . 1 3 Feedback Events 1 | . . 1 Corruption 1 | . . 1 Feedback Blocked . | . . . Robot Schematics Acquired . | . . . Robots Built . | . . . Matter . | . . . Time . | . . . Total Robot Build Rating . | . . . Part Schematics Acquired . | . . . Parts Built . | . . . Matter . | . . . Time . | . . . Total Part Build Rating . | . . . Parts Repaired . | . . . Time . | . . . Parts Recycled . | . . . Recycled Matter . | . . . Retrieved Matter . | . . . Retrieved Components . | . . . Parts Scanalyzed . | . . . Part Schematics Acquired . | . . . Parts Damaged . | . . . Bothacking | -11 -10 -9 ------------ Run | Scr Mat Mat Used RIF Installer . | . . . Robots Hacked . | . . . Non-combat . | . . . Combat . | . . . Robot Hacks Applied . | . . . Relay Couplers Released . | . . . Robots Rewired . | . . . Allies Hacked . | . . . Hacks Repelled . | . . . Allies | -11 -10 -9 -------- Run | Scr Mat Mat Total Allies . | . . . Largest Group . | . . . Highest-Rated Group . | . . . Highest-Rated Ally . | . . . Total Orders . | . . . Ally Attacks . | . . . Total Damage . | . . . Kills . | . . . Allies Corrupted . | . . . Allies Melted . | . . . Intel | -11 -10 -9 ------- Run | Scr Mat Mat Robot Analysis Total . | . . . Derelict Logs Recovered . | . . . Drone Launches . | . . . Drone Recoveries . | . . . Exploration | -11 -10 -9 ------------- Run | Scr Mat Mat Turns Passed 1878 | 118 755 1005 Spaces Moved 825 | 73 390 362 Core 16 | 13 . 3 Treads 459 | 60 363 36 Legs 350 | . 27 323 Wheels . | . . . Hover . | . . . Flight . | . . . Fastest Speed 50 | 50 120 120 Average Speed 171 | 140 157 193 Slowest Speed 450 | 160 160 450 Overloaded Moves . | . . . Propulsion Burnouts . | . . . Robots Hopped . | . . . Cave-ins Triggered . | . . . Exploration Rate (%) 21 | 5 40 20 Regions Visited 2 Branch Regions . Pre-discovered Areas . | . . . Known Exits Taken . | . . . Unknown Exits Taken 2 | 1 1 . Scrap Searched . | . . . Spaces Dug . | . . . Terrain Destroyed 8 | . 8 . Melee . | . . . Projectile . | . . . AOE 8 | . 8 . Actions | -11 -10 -9 --------- Run | Scr Mat Mat Total 1086 | 89 470 527 Wait 72 | . 36 36 Move 823 | 72 389 362 Hop . | . . . Pick Up 34 | 8 4 22 Fast Attach . | . . . Attach 32 | 7 4 21 Detach 3 | 1 . 2 Swap 7 | 1 2 4 Drop 7 | . 1 6 Fire 104 | . 30 74 Melee . | . . . Ram . | . . . Kick . | . . . Crush 4 | . 4 . Escape Stasis . | . . . Rewire . | . . . Trap . | . . . Miscellaneous . | . . . Route ------- -11/Scrapyard -10/Materials -9/Materials History --------- Turn | Location | Event 6 | -11/Scrapyard | Discovered new exit (range 15) 119 | -11/Scrapyard | Entered Materials 317 | -10/Materials | Build established: Mutant 826 | -10/Materials | Core integrity fell below 50% 851 | -10/Materials | Core integrity fell below 20% 855 | -10/Materials | Discovered new exit (range 16) 866 | -10/Materials | Lost 3 parts (1p1n1u) 874 | -10/Materials | Entered another Materials area 874 | -9/Materials | Evolved 2 slots: Utility x1, Weapon x1 1490 | -9/Materials | Build established: Scavenger-Mutant 1736 | -9/Materials | Core integrity fell below 50% 1762 | -9/Materials | Core integrity fell below 20% 1777 | -9/Materials | Lost 6 parts (1p2n3w) 1879 | -9/Materials | Destroyed by Y-45 Defender with Heavy Assault Rifle Last Messages --------------- 01775_ K-01 Serf collects debris. 01779_ Acquired Lgt. Treads. 01781_ K-01 Serf collects debris. 01782_ System corrupted: Energy discharge (-50). 01782_ Acquired 54 matter. 01783_ K-01 Serf collects debris. 01786_ U-05 Engineer builds a Door. 01787_ R-06 Scavenger collects Lgt. Armor Plating. 01792_ R-06 Scavenger collects Heat Sink. 01795_ Acquired 33 matter. 01808_ Assault Rifle destroyed. 01818_ G-34 Mercenary destroyed. 01830_ Acquired 39 matter. 01834_ Acquired Heat Sink. 01847_ Electrolysis Chamber disabled. 01852_ Med. Armor Plating destroyed. 01853_ S-10 Pest destroyed. 01854_ Acquired 20 matter. 01863_ System corrupted: Energy discharge (-53). 01873_ Sml. Laser destroyed. Map ----- +----------------------------------------------------+ | ########## + ## #???????????????????? | | ?????????# [[ ##???????# #???????????????????? | | ?????????# [[ =%#????????# #???????????????????? | | ?????????+ [[ *=%########## #???????????????????? | | ?????????# #???????????????????? | | ?????????# *% % #???????????????????? | | ?????????# ############### #????#??????????????? | | ?????????# #?????????##### #??? #??????????????? | | ?????????# #?????????# ###+##########??????? | | ?????????# #?????????# ?????? | | ?????????# +?????????# ?????? | | ?????????# #?????????# ?????? | | ?????????# #?????????# #############???????? | | ?????????# #?????????###+######????????????????? | | ?????????# #?????????# #????????????????? | | ?????????# #?????????# """"" #????????????????? | | ?????????# ??????????# """"" #????????????????? | | ?????????+ ??????????# """"" #????????????????? | | ?????????? ??????????# #????????????????? | | ???????????????????????# " " #????????????????? | | ???????????????????????# "T" #????????????????? | | ???????????????????????# """ #????????????????? | | ???????????????????????# #????????????????? | | ???????????????????????##+#######????????????????? | | ????????????????????????# #??????????????????????? | | ????????????????????????#@#??????????????????????? | | ????????????????????????# #??????????????????????? | | ????????????????????????# #??????????????????????? | | ????????????????????????# #??????????????????????? | | ????????????????????????# #??????????????????????? | | ????????????????????????# #??????????????????????? | | ????????????????????????# #??????????????????????? | | ????????????????????????# #??????????????????????? | | ????????????????????????#Y#??????????????????????? | | ???????????????????????? =[??????????????????????? | | ???????????????????????? ??????????????????????? | | ??????????????????????? ?????????????????????? | | ???????????????????????" " ?????????????????????? | | ?????????????????????? """ ????????????????????? | | ?????????????????????? """ ????????????????????? | | ?????????????????????# ???????????????????? | | ?????????????????????# ???????????????????? | | ??????????????????????###?+####??????????????????? | | ?????????????????????????? ?????????????????????? | | ?????????????????????????? ?????????????????????? | | ??????????????????????????? ?????????????????????? | | ??????????????????????????? ?????????????????????? | | ??????????????????????????? ?????????????????????? | | ?????????????????????????????????????????????????? | | ?????????????????????????????????????????????????? | +----------------------------------------------------+ Best States ------------- Heat Dissipation 35 Energy Generation 12 Energy Capacity 265 Matter Stores 300 Matter Capacity 300 Sight Range 16 Terrain Scan Density 10 Armor Coverage 450 Evasion (%) 50 Recoil Reduction 2 Defensive Hacking 10 Item Schematics ----------------- None Robot Schematics ------------------ None Fabricated ------------ Nothing Alien Tech Used ----------------- None Achievements -------------- Close Call Fist Fight Challenges ------------ None Game ------ Seed EnergyMeleeStorm Manual? 0 Play Time 00:32:05 Cumulative 2.7 hours Start 2020.07.14 @ 15:41:37 End 2020.07.14 @ 16:18:34 Sessions 1 Manual Loads 0 Difficulty Rogue Special Mode None Game No. 3 Rogue 3 Adventurer 0 Explorer 0 Win Type - Total 0 Types 0/0/0/0/0/0/0 Lore% 1 Gallery% 3 Achievement% 4 Wizard Run 0 Options --------- ASCII 0 Keyboard 0 Movement Arrows Keybinds 0 Fullscreen 0 Font 18/CogWide Map View 75x50 Tactical HUD 1 Map Filters NONE Filters NONE Steam 1 RUN: 173bca14-64d8-4c61-9929-c70e8d58c929